fUST/lending_fUST_20260201
["ID","MTS","AMOUNT","RATE_DAILY","PERIOD"]
[404194499,1769933167803,151.0,0.00037479,31]
[404194500,1769933168228,151.0,0.00037479,31]
[404194501,1769933168787,151.0,0.00037479,31]
[404194502,1769933169183,151.0,0.00037479,31]
[404194503,1769933169508,151.0,0.00037479,31]
[404194504,1769933169981,151.0,0.00037479,31]
[404194505,1769933170333,151.0,0.00037479,31]
[404194506,1769933170829,151.0,0.00037479,31]
[404194507,1769933171357,151.0,0.00037479,31]
[404194508,1769933172208,181.899836,0.00037479,31]
[404194509,1769933191230,151.0,0.00037479,31]
[404194510,1769933191670,162.081383,0.00037479,31]
[404194511,1769933194623,253.531712,0.00037479,31]
[404194515,1769933236980,1397.188134,0.00037479,31]
[404194517,1769933237361,1397.188134,0.00037479,31]
[404194518,1769933237699,1397.188134,0.00037479,31]
[404194519,1769933238052,1397.188134,0.00037479,31]
[404194520,1769933238639,1397.188134,0.00037479,31]
[404194521,1769933239069,1397.188134,0.00037479,31]
[404194522,1769933239347,1397.188134,0.00037479,31]
[404194523,1769933239656,1397.188134,0.00037479,31]
[404194524,1769933240080,1397.188134,0.00037479,31]
[404194525,1769933240451,1397.188134,0.00037479,31]
[404194526,1769933240784,1397.188134,0.00037479,31]
[404194527,1769933241644,1397.188134,0.00037479,31]
[404194528,1769933241917,1397.188134,0.00037479,31]
[404194529,1769933242240,1397.188134,0.00037479,31]
[404194530,1769933242648,1397.188134,0.00037479,31]
[404194531,1769933243141,1397.188134,0.00037479,31]
[404194532,1769933243564,1397.188134,0.00037479,31]
[404194533,1769933243989,1397.188134,0.00037479,31]
[404194534,1769933244448,1397.188134,0.00037479,31]
[404194535,1769933244917,1397.188136,0.00037479,31]
[404194536,1769933245752,151.0,0.00037479,31]
[404194537,1769933246242,151.0,0.00037479,31]
[404194538,1769933246711,164.402729,0.00037479,31]
[404194540,1769933251082,151.0,0.00037479,31]
[404194541,1769933251467,151.0,0.00037479,31]
[404194542,1769933251848,162.44721,0.00037479,31]
[404194543,1769933313857,151.0,0.00037479,31]
[404194544,1769933314154,151.0,0.00037479,31]
[404194545,1769933315035,151.0,0.00037479,31]
[404194546,1769933315475,278.229266,0.00037479,31]
[404194547,1769933321029,257.770566,0.00037479,31]
[404194549,1769933356932,235.081969,0.00037479,31]
[404194550,1769933357341,235.081969,0.00037479,31]
[404194551,1769933357717,235.081969,0.00037479,31]
[404194552,1769933358086,235.081969,0.00037479,31]
[404194553,1769933358369,235.081969,0.00037479,31]
[404194554,1769933358807,235.081969,0.00037479,31]
[404194555,1769933359315,235.081969,0.00037479,31]
[404194556,1769933359524,235.081969,0.00037479,31]
[404194557,1769933359897,235.081969,0.00037479,31]
[404194558,1769933360199,235.081969,0.00037479,31]
[404194559,1769933360704,235.081969,0.00037479,31]
[404194560,1769933361032,235.081969,0.00037479,31]
[404194561,1769933361462,235.081969,0.00037479,31]
[404194562,1769933361911,235.081969,0.00037479,31]
[404194563,1769933362209,235.081969,0.00037479,31]
[404194564,1769933362584,235.081969,0.00037479,31]
[404194565,1769933363010,235.081969,0.00037479,31]
[404194566,1769933364229,235.081969,0.00037479,31]
[404194567,1769933364674,235.081969,0.00037479,31]
[404194568,1769933365010,235.081973,0.00037479,31]
[404194569,1769933370439,151.0,0.00037479,31]
[404194570,1769933371068,151.0,0.00037479,31]
[404194571,1769933404279,173.748602,0.00037479,31]
[404194572,1769933404573,173.748602,0.00037479,31]
[404194573,1769933405378,173.748602,0.00037479,31]
[404194574,1769933405855,173.748602,0.00037479,31]
[404194575,1769933406331,173.748602,0.00037479,31]
[404194576,1769933406644,173.748602,0.00037479,31]
[404194577,1769933407147,173.748602,0.00037479,31]
[404194578,1769933407520,173.748602,0.00037479,31]
[404194579,1769933408159,173.748602,0.00037479,31]
[404194580,1769933408617,173.748602,0.00037479,31]
[404194581,1769933409155,173.748602,0.00037479,31]
[404194582,1769933409776,173.748602,0.00037479,31]
[404194583,1769933410155,173.748602,0.00037479,31]
[404194584,1769933410667,173.748602,0.00037479,31]
[404194585,1769933411173,173.748602,0.00037479,31]
[404194586,1769933411633,173.748602,0.00037479,31]
[404194587,1769933412136,173.748602,0.00037479,31]
[404194588,1769933413023,173.748602,0.00037479,31]
[404194589,1769933413476,173.748602,0.00037479,31]
[404194590,1769933414012,173.748594,0.00037479,31]
[404194601,1769933431645,-300.0,0.00013272,2]
[404194603,1769933431654,-608.0,0.00013272,2]
[404194605,1769933431663,-94.01229524,0.00013272,2]
[404194716,1769933434052,151.0,0.00037479,31]
[404194717,1769933434334,151.0,0.00037479,31]
[404194718,1769933434395,151.0,0.00037479,31]
[404194719,1769933434681,151.0,0.00037479,31]
[404194720,1769933434815,151.0,0.00037479,31]
[404194721,1769933434968,151.0,0.00037479,31]
[404194722,1769933435145,151.0,0.00037479,31]
[404194723,1769933435346,151.0,0.00037479,31]
[404194724,1769933435432,202.082243,0.00037479,31]
[404194725,1769933435695,151.0,0.00037479,31]
[404194726,1769933436224,151.0,0.00037479,31]
[404194727,1769933436637,151.0,0.00037479,31]
[404194729,1769933437391,151.0,0.00037479,31]
[404194753,1769933437699,-55.98770476,0.00013272,2]
[404194755,1769933437708,-500.0,0.00013273,2]
[404194757,1769933437717,-500.89955537,0.00013273,2]
[404194759,1769933437727,-500.0,0.00013273,2]
[404194761,1769933437736,-508.81622736,0.00013273,2]
[404194763,1769933437745,-500.0,0.00013273,2]
[404194774,1769933437836,-158.81622736,0.00013273,2]
[404194776,1769933437846,-488.50652582,0.00013273,2]
[404194778,1769933437855,-300.0,0.00013537,2]
[404194780,1769933437864,-300.0,0.00013537,2]
[404194782,1769933437873,-300.0,0.00013537,2]
[404194784,1769933437882,-300.0,0.00013537,2]
[404194786,1769933437891,-300.0,0.00013537,2]
[404194788,1769933437901,-300.0,0.00013537,2]
[404194790,1769933437911,-300.0,0.00013537,2]
[404194792,1769933437920,-300.0,0.00013537,2]
[404194794,1769933437928,-300.0,0.00013537,2]
[404194796,1769933437938,-300.0,0.00013537,2]
[404194798,1769933437947,-300.0,0.00013537,2]
[404194800,1769933437957,-300.0,0.00013537,2]
[404194802,1769933437966,-300.0,0.00013537,2]
[404194804,1769933437976,-300.0,0.00013537,2]
[404194806,1769933437985,-300.0,0.00013537,2]
[404194808,1769933437994,-231.28910366,0.00013699,2]
[404194810,1769933438003,-500.0,0.00013699,2]
[404194811,1769933438021,-500.0,0.00013699,2]
[404194812,1769933438033,-600.0,0.00013807,2]
[404194813,1769933438043,-1000.0,0.00013821,2]
[404194814,1769933438056,-1000.0,0.00013821,2]
[404194815,1769933438066,-1000.0,0.00013821,2]
[404194816,1769933438076,-1000.0,0.00013821,2]
[404194817,1769933438088,-796.25821529,0.00014247,2]
[404194818,1769933438098,-504.6841927,0.00014368,2]
[404194819,1769933438107,-1500.0,0.00014368,2]
[404194820,1769933438118,-1500.0,0.00014368,2]
[404194821,1769933438128,-989.61519171,0.00014368,2]
[404194822,1769933438139,-407.0,0.00014551,2]
[404194823,1769933438149,-1500.0,0.00014916,2]
[404194824,1769933438160,-244.71254619,0.00014916,2]
[404194825,1769933438170,-720.0,0.00015187,2]
[404194826,1769933438179,-177.0,0.00015272,2]
[404194827,1769933438189,-691.13,0.00015342,2]
[404194828,1769933438199,-864.0,0.00016706,2]
[404194830,1769933438209,-204.0,0.00017272,2]
[404194832,1769933438218,-1000.0,0.00017447,2]
[404194834,1769933438228,-1000.0,0.00018377,2]
[404194836,1769933438238,-500.0,0.00018894,2]
[404194838,1769933438247,-301.98559799,0.00018895,2]
[404194841,1769933438257,-231.0,0.00019272,2]
[404194843,1769933438266,-160.0,0.0002016,2]
[404194845,1769933438276,-1000.0,0.00020214,2]
[404194847,1769933438286,-244.0,0.00020214,2]
[404194849,1769933438295,-258.0,0.00021272,2]
[404194851,1769933438305,-158.0,0.00021863,5]
[404194853,1769933438314,-150.0,0.00021918,2]
[404194855,1769933438325,-150.0,0.00021918,2]
[404194856,1769933438335,-1000.0,0.00022236,10]
[404194858,1769933438344,-492.0,0.00022236,10]
[404194860,1769933438353,-300.0,0.00022466,2]
[404194863,1769933438364,-200.0,0.00022466,2]
[404194865,1769933438373,-397.841,0.00022466,2]
[404194866,1769933438383,-344.0,0.00023,7]
[404194868,1769933438393,-450.0,0.00023014,2]
[404194871,1769933438406,-311.95963583,0.00023014,2]
[404194873,1769933438415,-285.0,0.00023272,2]
[404194875,1769933438425,-344.0,0.00023288,7]
[404194877,1769933438434,-267.55765258,0.00023288,7]
[404194879,1769933438444,-184.990924,0.00023291,2]
[404194881,1769933438454,-451.6976682,0.00023562,2]
[404194883,1769933438464,-500.0,0.00024121,2]
[404194885,1769933438473,-1326.6643366,0.00024123,2]
[404194887,1769933438483,-344.0,0.00024164,7]
[404194889,1769933438493,-1000.0,0.00024459,10]
[404194891,1769933438503,-791.0,0.00024459,10]
[404194893,1769933438512,-217.18719938,0.00025069,2]
[404194895,1769933438522,-500.0,0.00025069,2]
[404194897,1769933438531,-500.0,0.00025069,2]
[404194899,1769933438540,-500.0,0.00025069,2]
[404194901,1769933438549,-500.0,0.00025069,2]
[404194903,1769933438558,-500.0,0.00025069,2]
[404194905,1769933438567,-500.0,0.00025069,2]
[404194907,1769933438577,-202.98283622,0.00025069,2]
[404194909,1769933438586,-500.0,0.00025069,2]
[404194911,1769933438596,-500.0,0.00025069,2]
[404194913,1769933438605,-500.0,0.00025069,2]
[404194915,1769933438614,-201.53429337,0.00025069,2]
[404194917,1769933438623,-150.0,0.00025069,2]
[404194919,1769933438632,-500.0,0.00025069,2]
[404194921,1769933438642,-500.0,0.00025069,2]
[404194923,1769933438651,-244.77146257,0.00025069,2]
[404194925,1769933438660,-500.0,0.00025069,2]
[404194927,1769933438669,-500.0,0.00025206,2]
[404194930,1769933438678,-612.37624938,0.00025206,2]
[404194932,1769933438697,-500.0,0.00025206,2]
[404194935,1769933438710,-500.0,0.00025206,2]
[404194937,1769933438725,-500.0,0.00025206,2]
[404194940,1769933438738,-500.0,0.00025206,2]
[404194942,1769933438751,-500.0,0.00025206,2]
[404194944,1769933438761,-500.0,0.00025206,2]
[404194947,1769933438774,-500.0,0.00025206,2]
[404194949,1769933438786,-150.0,0.00025206,2]
[404194951,1769933438799,-500.0,0.00025206,2]
[404194954,1769933438812,-500.0,0.00025206,2]
[404194956,1769933438825,-500.0,0.00025206,2]
[404194959,1769933438837,-312.0,0.00025272,2]
[404194961,1769933438849,-500.0,0.00025343,2]
[404194963,1769933438864,-153.81342191,0.00025343,2]
[404194966,1769933438877,-500.0,0.00025343,2]
[404194968,1769933438889,-500.0,0.00025343,2]
[404194970,1769933438900,-264.75228911,0.00025343,2]
[404194973,1769933438914,-154.4059498,0.00025343,2]
[404194975,1769933438926,-483.3143349,0.00025343,2]
[404194978,1769933438937,-500.0,0.00025343,2]
[404194980,1769933438949,-150.0,0.00025343,2]
[404194982,1769933438962,-500.0,0.00025343,2]
[404194985,1769933438975,-500.0,0.00025343,2]
[404194987,1769933438987,-274.3627066,0.00025343,2]
[404194989,1769933438998,-347.0,0.00025373,7]
[404194991,1769933439008,-500.0,0.0002548,2]
[404194994,1769933439018,-500.0,0.0002548,2]
[404194996,1769933439030,-500.0,0.0002548,2]
[404194998,1769933439040,-500.0,0.0002548,2]
[404195000,1769933439054,-150.0,0.0002548,2]
[404195003,1769933439069,-500.44827673,0.0002548,2]
[404195005,1769933439081,-500.0,0.0002548,2]
[404195007,1769933439095,-500.0,0.00025617,2]
[404195010,1769933439107,-500.0,0.00025617,2]
[404195012,1769933439119,-248.8969387,0.00025617,2]
[404195014,1769933439132,-400.0,0.00025754,2]
[404195017,1769933439144,-1000.0,0.00026905,30]
[404195019,1769933439157,-1000.0,0.00026905,30]
[404195021,1769933439169,-344.0,0.00027064,7]
[404195023,1769933439179,-339.0,0.00027272,2]
[404195025,1769933439189,-229.69996115,0.0002797,3]
[404195028,1769933439201,-492.2981084,0.00028227,3]
[404195030,1769933439212,-917.88104476,0.00028227,3]
[404195032,1769933439224,-620.140741,0.00028733,2]
[404195035,1769933439238,-344.0,0.00028756,14]
[404195037,1769933439250,-344.0,0.00028997,14]
[404195039,1769933439260,-174.53011017,0.00029187,2]
[404195041,1769933439270,-314.1541983,0.00029187,2]
[404195043,1769933439280,-558.49635254,0.00029187,2]
[404195045,1769933439291,-406.76034787,0.00029187,2]
[404195048,1769933439303,-732.16862617,0.00029187,2]
[404195050,1769933439314,-1301.63311319,0.00029187,2]
[404195052,1769933439325,-366.0,0.00029272,2]
[404195054,1769933439335,-1000.0,0.00029596,30]
[404195056,1769933439345,-1000.0,0.00029596,30]
[404195058,1769933439355,-579.0,0.00029596,30]
[404195060,1769933439366,-620.140741,0.00029943,2]
[404195063,1769933439377,-255.10373172,0.0003,14]
[404195065,1769933439387,-16883.19,0.00030433,10]
[404195067,1769933439398,-20259.83,0.00030437,10]
[404195069,1769933439409,-24311.8,0.00030443,10]
[404195071,1769933439421,-344.0,0.00030447,14]
[404195073,1769933439432,-25861.42,0.00030453,10]
[404195076,1769933439442,-7917.09621369,0.00030453,2]
[404195078,1769933439453,-7917.09621369,0.00030473,2]
[404195080,1769933439465,-4311.7918971,0.00030493,2]
[404195085,1769933439479,-160.0,0.00031,120]
[404195088,1769933439491,-620.140741,0.00031152,2]
[404195090,1769933439503,-393.0,0.00031272,2]
[404195092,1769933439514,-2000.0,0.000322,120]
[404195095,1769933439525,-620.140741,0.00032362,2]
[404195097,1769933439536,-1000.0,0.00032556,30]
[404195099,1769933439547,-1000.0,0.00032556,30]
[404195101,1769933439557,-1000.0,0.00032556,30]
[404195104,1769933439568,-151.0,0.000326,15]
[404195106,1769933439579,-151.0,0.000327,10]
[404195108,1769933439589,-151.0,0.000328,10]
[404195110,1769933439600,-3303.26597039,0.000329,2]
[404195112,1769933439611,-151.0,0.00032968,31]
[404195114,1769933439621,-151.0,0.00032968,31]
[404195116,1769933439632,-151.0,0.00032979,31]
[404195119,1769933439644,-153.705104,0.00032979,31]
[404195121,1769933439655,-508.3855,0.00032988,2]
[404195123,1769933439667,-508.3855,0.00032988,3]
[404195125,1769933439678,-508.3855,0.00032988,5]
[404195138,1769933439781,-200.0,0.00032988,2]
[404195140,1769933439793,-508.3855,0.00032988,2]
[404195142,1769933439803,-508.3855,0.00032988,3]
[404195144,1769933439813,-281.86,0.00032988,2]
[404195146,1769933439822,-23751.2886411,0.00032988,2]
[404195148,1769933439831,-151.0,0.0003299,31]
[404195149,1769933439841,-151.0,0.0003299,31]
[404195151,1769933439850,-71253.8659232,0.0003299,2]
[404195153,1769933439859,-117438.92852016,0.00032998,2]
[404195155,1769933439868,-151.0,0.00032998,31]
[404195157,1769933439877,-151.0,0.00032998,31]
[404195159,1769933439886,-419975.06535216,0.00033,2]
[404195161,1769933439895,-1000.0,0.00033,2]
[404195162,1769933439904,-169.78,0.00033,7]
[404195164,1769933439913,-157.05,0.00033,7]
[404195166,1769933439922,-168.12,0.00033,7]
[404195167,1769933439932,-827.48,0.00033,30]
[404195168,1769933439940,-156.12,0.00033,7]
[404195169,1769933439950,-5553.28,0.00033,14]
[404195170,1769933439958,-164.540204,0.00033,31]
[404195171,1769933439968,-151.0,0.00033,31]
[404195172,1769933439978,-151.0,0.00033,19]
[404195173,1769933439987,-167.303033,0.00033,60]
[404195174,1769933439996,-487.0,0.00033,2]
[404195175,1769933440006,-487.0,0.00033,2]
[404195176,1769933440014,-487.0,0.00033,2]
[404195177,1769933440024,-487.0,0.00033,2]
[404195178,1769933440033,-487.0,0.00033,2]
[404195179,1769933440042,-487.0,0.00033,2]
[404195180,1769933440058,-487.0,0.00033,2]
[404195181,1769933440069,-487.0,0.00033,2]
[404195182,1769933440079,-487.0,0.00033,2]
[404195183,1769933440090,-487.0,0.00033,2]
[404195184,1769933440101,-487.0,0.00033,2]
[404195185,1769933440111,-487.0,0.00033,2]
[404195186,1769933440122,-487.0,0.00033,2]
[404195187,1769933440131,-487.0,0.00033,2]
[404195188,1769933440143,-487.0,0.00033,2]
[404195189,1769933440154,-487.0,0.00033,2]
[404195190,1769933440163,-487.0,0.00033,2]
[404195191,1769933440172,-487.0,0.00033,2]
[404195192,1769933440181,-487.0,0.00033,2]
[404195193,1769933440190,-487.0,0.00033,2]
[404195194,1769933440199,-487.0,0.00033,2]
[404195195,1769933440208,-487.0,0.00033,2]
[404195196,1769933440217,-487.0,0.00033,2]
[404195197,1769933440227,-487.0,0.00033,2]
[404195198,1769933440236,-487.0,0.00033,2]
[404195199,1769933440245,-872.01,0.00033,2]
[404195200,1769933440254,-151.0,0.000331,15]
[404195201,1769933440263,-151.0,0.000331,13]
[404195202,1769933440272,-151.0,0.000332,15]
[404195203,1769933440281,-151.0,0.000332,17]
[404195204,1769933440291,-632.99995652,0.000332,117]
[404195205,1769933440300,-420.0,0.00033272,120]
[404195206,1769933440309,-151.0,0.000333,14]
[404195207,1769933440318,-151.0,0.000333,13]
[404195208,1769933440327,-151.0,0.000334,13]
[404195209,1769933440336,-151.0,0.000334,18]
[404195210,1769933440345,-151.0,0.000334,14]
[404195211,1769933440354,-151.0,0.000335,14]
[404195212,1769933440363,-151.0,0.000335,19]
[404195213,1769933440373,-620.140741,0.00033571,2]
[404195214,1769933440382,-151.0,0.000336,14]
[404195215,1769933440391,-151.0,0.000336,19]
[404195216,1769933440400,-151.0,0.000337,12]
[404195217,1769933440410,-151.0,0.000337,11]
[404195218,1769933440423,-151.0,0.000337,19]
[404195219,1769933440432,-39585.4810684,0.00033778,2]
[404195220,1769933440441,-155.14,0.00033787,2]
[404195221,1769933440450,-245744.41588323,0.00033788,60]
[404195222,1769933440460,-200.0,0.000339,120]
[404195223,1769933440469,-1000.0,0.00034,2]
[404195224,1769933440479,-1000.0,0.00034,120]
[404195225,1769933440488,-962.0908165,0.00034364,2]
[404195226,1769933440499,-7917.09621369,0.0003439,2]
[404195227,1769933440508,-125899.69874141,0.000344,10]
[404195228,1769933440549,151.0,0.00037479,31]
[404195229,1769933440620,151.0,0.00037479,31]
[404195230,1769933440670,151.0,0.00037479,31]
[404195231,1769933440719,151.0,0.00037479,31]
[404195232,1769933440771,151.0,0.00037479,31]
[404195233,1769933440784,-581.95980106,0.000344,10]
[404195234,1769933440824,277.137498,0.00037479,31]
[404195244,1769933445703,-200.0,0.00018377,2]
[404195245,1769933445714,-1041.66666667,0.0002016,2]
[404195246,1769933445723,-14914.4382628,0.000344,10]
[404195247,1769933445736,-771.99000221,0.000344,10]
[404195248,1769933446039,-3938.98121275,0.000344,10]
[404195249,1769933447777,151.0,0.00037479,31]
[404195250,1769933448249,151.0,0.00037479,31]
[404195251,1769933448767,151.0,0.00037479,31]
[404195252,1769933449051,151.0,0.00037479,31]
[404195253,1769933449609,151.0,0.00037479,31]
[404195254,1769933449985,151.0,0.00037479,31]
[404195255,1769933450328,151.0,0.00037479,31]
[404195256,1769933451246,151.0,0.00037479,31]
[404195257,1769933451867,151.0,0.00037479,31]
[404195258,1769933452150,151.0,0.00037479,31]
[404195259,1769933452531,151.0,0.00037479,31]
[404195260,1769933452941,151.0,0.00037479,31]
[404195261,1769933453480,151.0,0.00037479,31]
[404195262,1769933453888,151.0,0.00037479,31]
[404195263,1769933454334,151.0,0.00037479,31]
[404195264,1769933454803,267.113778,0.00037479,31]
[404195265,1769933469354,151.0,0.00037479,31]
[404195266,1769933469898,276.805088,0.00037479,31]
[404195267,1769933476184,151.0,0.00037479,31]
[404195268,1769933476630,151.0,0.00037479,31]
[404195269,1769933477218,172.720576,0.00037479,31]
[404195270,1769933482913,151.0,0.00037479,31]
[404195271,1769933483234,151.0,0.00037479,31]
[404195272,1769933483533,151.0,0.00037479,31]
[404195273,1769933483849,151.0,0.00037479,31]
[404195274,1769933484144,151.0,0.00037479,31]
[404195275,1769933484519,151.0,0.00037479,31]
[404195276,1769933484890,151.0,0.00037479,31]
[404195277,1769933485101,151.0,0.00037479,31]
[404195278,1769933485390,151.0,0.00037479,31]
[404195279,1769933485690,151.0,0.00037479,31]
[404195280,1769933486027,151.0,0.00037479,31]
[404195281,1769933486318,151.0,0.00037479,31]
[404195282,1769933486714,151.0,0.00037479,31]
[404195283,1769933487014,227.610293,0.00037479,31]
[404195284,1769933488960,153.11742,0.00037479,31]
[404195286,1769933492569,151.0,0.00037479,31]
[404195287,1769933493471,155.119777,0.00037479,31]
[404195288,1769933493827,280.035864,0.00037479,31]
[404195289,1769933494294,280.035864,0.00037479,31]
[404195290,1769933494769,280.035864,0.00037479,31]
[404195291,1769933495048,280.035864,0.00037479,31]
[404195292,1769933495502,280.035864,0.00037479,31]
[404195293,1769933495951,280.035864,0.00037479,31]
[404195294,1769933496378,280.035864,0.00037479,31]
[404195295,1769933496771,280.035864,0.00037479,31]
[404195296,1769933497229,280.035864,0.00037479,31]
[404195297,1769933497630,280.035864,0.00037479,31]
[404195298,1769933497869,151.0,0.00037479,31]
[404195299,1769933498033,280.035864,0.00037479,31]
[404195300,1769933498139,151.0,0.00037479,31]
[404195301,1769933498278,151.0,0.00037479,31]
[404195302,1769933498537,280.035864,0.00037479,31]
[404195303,1769933498639,151.0,0.00037479,31]
[404195304,1769933498676,151.0,0.00037479,31]
[404195305,1769933498934,151.0,0.00037479,31]
[404195306,1769933498972,280.035864,0.00037479,31]
[404195307,1769933499064,151.0,0.00037479,31]
[404195308,1769933499330,158.870137,0.00037479,31]
[404195309,1769933499389,280.035864,0.00037479,31]
[404195310,1769933499452,151.0,0.00037479,31]
[404195311,1769933499844,151.0,0.00037479,31]
[404195312,1769933499924,280.035864,0.00037479,31]
[404195313,1769933500249,151.0,0.00037479,31]
[404195314,1769933500368,280.035864,0.00037479,31]
[404195315,1769933500615,151.0,0.00037479,31]
[404195316,1769933500878,280.035864,0.00037479,31]
[404195317,1769933501093,151.0,0.00037479,31]
[404195318,1769933501352,280.035864,0.00037479,31]
[404195319,1769933501442,151.0,0.00037479,31]
[404195320,1769933501574,151.0,0.00037479,31]
[404195321,1769933501846,151.0,0.00037479,31]
[404195322,1769933501990,151.0,0.00037479,31]
[404195323,1769933502032,280.035864,0.00037479,31]
[404195324,1769933502220,151.0,0.00037479,31]
[404195325,1769933502651,236.573041,0.00037479,31]
[404195326,1769933502689,151.0,0.00037479,31]
[404195327,1769933502738,280.035866,0.00037479,31]
[404195328,1769933503056,151.0,0.00037479,31]
[404195329,1769933503342,151.0,0.00037479,31]
[404195330,1769933503746,151.0,0.00037479,31]
[404195331,1769933504185,151.0,0.00037479,31]
[404195332,1769933504470,151.0,0.00037479,31]
[404195333,1769933504770,151.0,0.00037479,31]
[404195334,1769933505404,151.0,0.00037479,31]
[404195335,1769933505781,151.0,0.00037479,31]
[404195336,1769933505818,223.404593,0.00037479,31]
[404195337,1769933506176,151.0,0.00037479,31]
[404195338,1769933506223,223.404593,0.00037479,31]
[404195339,1769933506603,151.0,0.00037479,31]
[404195340,1769933506645,223.404593,0.00037479,31]
[404195341,1769933507152,223.404593,0.00037479,31]
[404195342,1769933507216,156.804209,0.00037479,31]
[404195343,1769933507487,223.404593,0.00037479,31]
[404195344,1769933507824,223.404593,0.00037479,31]
[404195345,1769933508206,223.404593,0.00037479,31]
[404195346,1769933508542,223.404593,0.00037479,31]
[404195347,1769933508949,223.404593,0.00037479,31]
[404195348,1769933509383,223.404593,0.00037479,31]
[404195349,1769933509895,223.404593,0.00037479,31]
[404195350,1769933510317,223.404593,0.00037479,31]
[404195351,1769933510754,223.404593,0.00037479,31]
[404195352,1769933511244,223.404593,0.00037479,31]
[404195353,1769933511751,223.404593,0.00037479,31]
[404195354,1769933512359,223.404593,0.00037479,31]
[404195355,1769933513306,223.404593,0.00037479,31]
[404195356,1769933513853,223.404593,0.00037479,31]
[404195357,1769933514286,234.340524,0.00037479,31]
[404195358,1769933514323,223.404593,0.00037479,31]
[404195359,1769933514701,234.340524,0.00037479,31]
[404195360,1769933514894,223.404594,0.00037479,31]
[404195361,1769933515113,234.340524,0.00037479,31]
[404195362,1769933515713,234.340524,0.00037479,31]
[404195363,1769933516243,234.340524,0.00037479,31]
[404195364,1769933516834,234.340524,0.00037479,31]
[404195365,1769933517226,234.340524,0.00037479,31]
[404195366,1769933517677,234.340524,0.00037479,31]
[404195367,1769933517973,234.340524,0.00037479,31]
[404195368,1769933518264,234.340524,0.00037479,31]
[404195369,1769933519402,151.0,0.00037479,31]
[404195370,1769933519742,151.0,0.00037479,31]
[404195371,1769933519924,234.340524,0.00037479,31]
[404195372,1769933520011,200.106719,0.00037479,31]
[404195373,1769933520333,234.340524,0.00037479,31]
[404195374,1769933520850,234.340524,0.00037479,31]
[404195375,1769933521364,234.340524,0.00037479,31]
[404195376,1769933521891,234.340524,0.00037479,31]
[404195377,1769933522356,234.340524,0.00037479,31]
[404195378,1769933522901,234.340524,0.00037479,31]
[404195379,1769933524207,234.340524,0.00037479,31]
[404195380,1769933524632,234.340524,0.00037479,31]